[Event "GrandPrix_29.05"]
[Site "Chess.com"]
[Date "2020.05.29"]
[Round "2"]
[White "Yuri202062"]
[Black "klippfiskkjerringa"]
[Result "1/2-1/2"]
[WhiteElo "2281"]
[BlackElo "2185"]
[TimeControl "600+2"]
[EndTime "9:54:47 PDT"]
[Termination "Game drawn by agreement"]

1. d4 {[%clk 0:10:01.9]} 1... Nf6 {[%clk 0:10:00.4]} 2. c4 {[%clk 0:10:02.8]}
2... c5 {[%clk 0:10:01]} 3. d5 {[%clk 0:10:02.7]} 3... b5 {[%clk 0:10:02.2]} 4.
cxb5 {[%clk 0:10:03.3]} 4... a6 {[%clk 0:10:03.6]} 5. bxa6 {[%clk 0:10:03.2]}
5... g6 {[%clk 0:10:05]} 6. Nc3 {[%clk 0:10:03.4]} 6... Bg7 {[%clk 0:10:06.4]}
7. e4 {[%clk 0:10:03.5]} 7... O-O {[%clk 0:10:07.4]} 8. a7 {[%clk 0:10:03]} 8...
Rxa7 {[%clk 0:10:07.2]} 9. Nf3 {[%clk 0:10:03.2]} 9... e6 {[%clk 0:09:55.8]} 10.
Be2 {[%clk 0:10:02.8]} 10... exd5 {[%clk 0:09:54.3]} 11. exd5 {[%clk 0:10:03.8]}
11... d6 {[%clk 0:09:54.7]} 12. O-O {[%clk 0:10:03.3]} 12... Na6 {[%clk
0:09:49.7]} 13. Nb5 {[%clk 0:10:03.5]} 13... Rd7 {[%clk 0:09:38.3]} 14. Bc4
{[%clk 0:10:03.3]} 14... Bb7 {[%clk 0:09:23.1]} 15. Qb3 {[%clk 0:09:25]} 15...
Qa8 {[%clk 0:09:14.1]} 16. Bf4 {[%clk 0:08:15.8]} 16... Rfd8 {[%clk 0:08:46.1]}
17. Rad1 {[%clk 0:07:57.4]} 17... Nb4 {[%clk 0:08:33.9]} 18. Nc3 {[%clk
0:07:56.2]} 18... Rb8 {[%clk 0:07:45.5]} 19. a3 {[%clk 0:07:29.5]} 19... Ba6
{[%clk 0:06:31.3]} 20. Bxa6 {[%clk 0:05:26.8]} 20... Qxa6 {[%clk 0:06:21.2]} 21.
Rd2 {[%clk 0:02:49.8]} 21... c4 {[%clk 0:06:09.9]} 22. Qd1 {[%clk 0:01:50.4]}
22... Nd3 {[%clk 0:06:09.7]} 23. Be3 {[%clk 0:01:43.9]} 23... Nxb2 {[%clk
0:05:47.2]} 24. Qa1 {[%clk 0:01:26.1]} 24... Nd3 {[%clk 0:05:35]} 25. Bd4 {[%clk
0:01:27.2]} 25... Re7 {[%clk 0:04:42.9]} 26. a4 {[%clk 0:01:25.4]} 26... Nc5
{[%clk 0:04:10]} 27. Bxc5 {[%clk 0:00:52.1]} 27... Ne4 {[%clk 0:02:27.2]} 28.
Bd4 {[%clk 0:00:10.2]} 28... Nxd2 {[%clk 0:02:27.9]} 29. Bxg7 {[%clk 0:00:10.7]}
29... Nxf3+ {[%clk 0:02:28.9]} 30. gxf3 {[%clk 0:00:11]} 30... Kxg7 {[%clk
0:02:30]} 31. Ne4+ {[%clk 0:00:12]} 31... Kh6 {[%clk 0:02:31.2]} 32. Qc1+ {[%clk
0:00:11.7]} 32... Kg7 {[%clk 0:02:30.8]} 33. Qc3+ {[%clk 0:00:04.9]} 33... Kh6
{[%clk 0:02:02.1]} 34. Qe3+ {[%clk 0:00:04.8]} 34... Kg7 {[%clk 0:02:02]} 35.
Qd4+ {[%clk 0:00:06]} 35... Kh6 {[%clk 0:01:56.6]} 1/2-1/2

[Event "GrandPrix_29.05"]
[Site "Chess.com"]
[Date "2020.05.29"]
[Round "2"]
[White "Mizner"]
[Black "AbasovN"]
[Result "0-1"]
[WhiteElo "2170"]
[BlackElo "2609"]
[TimeControl "600+2"]
[EndTime "9:54:49 PDT"]
[Termination "AbasovN won on time"]

1. d4 {[%clk 0:10:01.9]} 1... Nf6 {[%clk 0:09:40.8]} 2. c4 {[%clk 0:10:02.6]}
2... e6 {[%clk 0:09:41.7]} 3. Nc3 {[%clk 0:10:02.8]} 3... Bb4 {[%clk 0:09:42.4]}
4. Qc2 {[%clk 0:10:04]} 4... d5 {[%clk 0:09:42.5]} 5. cxd5 {[%clk 0:10:03.7]}
5... exd5 {[%clk 0:09:44.4]} 6. Bg5 {[%clk 0:10:03.9]} 6... O-O {[%clk 0:09:40]}
7. e3 {[%clk 0:10:01]} 7... h6 {[%clk 0:09:37.7]} 8. Bh4 {[%clk 0:09:58.8]} 8...
Re8 {[%clk 0:09:38.6]} 9. Bd3 {[%clk 0:09:19.8]} 9... c5 {[%clk 0:09:37.7]} 10.
Ne2 {[%clk 0:09:12.5]} 10... Nc6 {[%clk 0:09:23.7]} 11. O-O {[%clk 0:08:50.8]}
11... cxd4 {[%clk 0:09:16.6]} 12. Nxd4 {[%clk 0:07:54.6]} 12... Nxd4 {[%clk
0:09:10]} 13. exd4 {[%clk 0:07:54.9]} 13... Be6 {[%clk 0:09:11.5]} 14. Bb5
{[%clk 0:07:12.2]} 14... Rf8 {[%clk 0:09:08.1]} 15. Qb3 {[%clk 0:07:05.8]} 15...
Ba5 {[%clk 0:09:05.5]} 16. Be2 {[%clk 0:06:38.8]} 16... Bb6 {[%clk 0:08:54.6]}
17. Rad1 {[%clk 0:06:37.3]} 17... Rc8 {[%clk 0:08:40.4]} 18. Bf3 {[%clk
0:06:01.9]} 18... Rc4 {[%clk 0:08:34]} 19. Bxf6 {[%clk 0:05:44.2]} 19... Qxf6
{[%clk 0:08:34.2]} 20. Nxd5 {[%clk 0:05:11.3]} 20... Bxd5 {[%clk 0:08:33.4]} 21.
Bxd5 {[%clk 0:05:11.5]} 21... Rxd4 {[%clk 0:08:35.3]} 22. Rxd4 {[%clk 0:03:41]}
22... Qxd4 {[%clk 0:08:37.2]} 23. Bxb7 {[%clk 0:03:40.4]} 23... Re8 {[%clk
0:08:36]} 24. Qf3 {[%clk 0:02:58.2]} 24... Qxb2 {[%clk 0:08:35]} 25. Bd5 {[%clk
0:02:56.7]} 25... Re7 {[%clk 0:08:18.6]} 26. g3 {[%clk 0:02:38.7]} 26... g6
{[%clk 0:08:12.3]} 27. h4 {[%clk 0:02:00.8]} 27... h5 {[%clk 0:08:10.7]} 28. Kg2
{[%clk 0:01:57.1]} 28... Kg7 {[%clk 0:08:06.6]} 29. Bb3 {[%clk 0:01:55.9]} 29...
Bd4 {[%clk 0:07:59.1]} 30. Rd1 {[%clk 0:01:30.5]} 30... Bxf2 {[%clk 0:07:46.1]}
31. Rf1 {[%clk 0:00:52.1]} 31... Bd4+ {[%clk 0:06:27.5]} 32. Kh3 {[%clk
0:00:37.9]} 32... f5 {[%clk 0:06:26.3]} 33. Qa8 {[%clk 0:00:25.8]} 33... Qe2
{[%clk 0:06:19]} 34. Qf3 {[%clk 0:00:14.9]} 34... Qb5 {[%clk 0:06:03.2]} 35. Rd1
{[%clk 0:00:14.6]} 35... Re3 {[%clk 0:05:05.9]} 36. Qa8 {[%clk 0:00:10.3]} 36...
Qc5 {[%clk 0:02:28]} 37. Qb7+ {[%clk 0:00:06.2]} 37... Kh6 {[%clk 0:02:20.8]}
38. Bg8 {[%clk 0:00:07.6]} 38... Bg7 {[%clk 0:02:21.3]} 39. Rd7 {[%clk
0:00:07.3]} 39... f4 {[%clk 0:02:15.3]} 0-1

[Event "GrandPrix_29.05"]
[Site "Chess.com"]
[Date "2020.05.29"]
[Round "2"]
[White "RogerFederer13"]
[Black "N4700000"]
[Result "0-1"]
[WhiteElo "2078"]
[BlackElo "2545"]
[TimeControl "600+2"]
[EndTime "9:54:49 PDT"]
[Termination "N4700000 won on time"]

1. e4 {[%clk 0:10:01.9]} 1... c5 {[%clk 0:09:59.7]} 2. Nf3 {[%clk 0:10:02.2]}
2... e6 {[%clk 0:10:00.2]} 3. d4 {[%clk 0:10:02.8]} 3... cxd4 {[%clk 0:10:01.6]}
4. Nxd4 {[%clk 0:10:04.7]} 4... Nf6 {[%clk 0:10:00.9]} 5. Nc3 {[%clk 0:10:04]}
5... Nc6 {[%clk 0:10:01.3]} 6. Nxc6 {[%clk 0:10:04.3]} 6... bxc6 {[%clk
0:10:01.9]} 7. e5 {[%clk 0:10:04.6]} 7... Nd5 {[%clk 0:10:02.8]} 8. Ne4 {[%clk
0:10:05.1]} 8... Qc7 {[%clk 0:10:02.7]} 9. f4 {[%clk 0:10:02.5]} 9... Qb6 {[%clk
0:10:02.1]} 10. c4 {[%clk 0:10:01.7]} 10... Bb4+ {[%clk 0:09:35.9]} 11. Ke2
{[%clk 0:10:01.1]} 11... O-O {[%clk 0:09:27.5]} 12. cxd5 {[%clk 0:08:02.8]}
12... cxd5 {[%clk 0:09:27.3]} 13. Be3 {[%clk 0:07:43.2]} 13... Qb8 {[%clk
0:09:02.4]} 14. Ng5 {[%clk 0:06:26.9]} 14... f6 {[%clk 0:08:26.1]} 15. exf6
{[%clk 0:06:04.9]} 15... gxf6 {[%clk 0:08:19.7]} 16. Nf3 {[%clk 0:06:03]} 16...
Bd6 {[%clk 0:07:56]} 17. Qb3 {[%clk 0:04:26.3]} 17... Bb7 {[%clk 0:06:55.2]} 18.
Kd1 {[%clk 0:03:06]} 18... a5 {[%clk 0:05:50]} 19. Bb5 {[%clk 0:02:46.4]} 19...
Rf7 {[%clk 0:05:46.5]} 20. Rf1 {[%clk 0:02:17]} 20... Bxf4 {[%clk 0:05:18.1]}
21. Bxf4 {[%clk 0:02:04.3]} 21... Qxf4 {[%clk 0:05:17.5]} 22. Qa4 {[%clk
0:02:02]} 22... Qd6 {[%clk 0:04:39.8]} 23. Rc1 {[%clk 0:01:32.1]} 23... e5
{[%clk 0:04:23]} 24. Nh4 {[%clk 0:01:15.5]} 24... Kh8 {[%clk 0:03:45.9]} 25. Nf5
{[%clk 0:01:13.6]} 25... Qb6 {[%clk 0:03:11.3]} 26. Rc2 {[%clk 0:00:51.1]} 26...
Ba6 {[%clk 0:02:50.6]} 27. Bxa6 {[%clk 0:00:44.4]} 27... Qxa6 {[%clk 0:02:52.5]}
28. Rff2 {[%clk 0:00:37.4]} 28... Qd3+ {[%clk 0:02:44.7]} 29. Kc1 {[%clk
0:00:34.6]} 29... d4 {[%clk 0:02:12.2]} 30. Qc4 {[%clk 0:00:33.6]} 30... Qxc4
{[%clk 0:02:12.2]} 31. Rxc4 {[%clk 0:00:35.5]} 31... d5 {[%clk 0:02:09.4]} 32.
Rc6 {[%clk 0:00:28.8]} 32... Rd8 {[%clk 0:02:03]} 33. Nh6 {[%clk 0:00:28.8]}
33... Rff8 {[%clk 0:01:52.6]} 0-1

[Event "GrandPrix_29.05"]
[Site "Chess.com"]
[Date "2020.05.29"]
[Round "2"]
[White "ZverevLev"]
[Black "HElissalt"]
[Result "1-0"]
[WhiteElo "2188"]
[BlackElo "1859"]
[TimeControl "600+2"]
[EndTime "9:54:52 PDT"]
[Termination "ZverevLev won by resignation"]

1. e4 {[%clk 0:10:01.9]} 1... d6 {[%clk 0:09:55.4]} 2. d4 {[%clk 0:10:01.4]}
2... Nf6 {[%clk 0:09:55.7]} 3. Nc3 {[%clk 0:09:59]} 3... e5 {[%clk 0:09:56.3]}
4. Nf3 {[%clk 0:09:54.4]} 4... Nbd7 {[%clk 0:09:53.3]} 5. Bc4 {[%clk 0:09:42.3]}
5... Be7 {[%clk 0:09:41.1]} 6. Bxf7+ {[%clk 0:08:32.1]} 6... Kxf7 {[%clk
0:09:38]} 7. Ng5+ {[%clk 0:08:31.7]} 7... Kg8 {[%clk 0:09:31.5]} 8. Ne6 {[%clk
0:08:31.3]} 8... Qe8 {[%clk 0:09:31.8]} 9. Nxc7 {[%clk 0:08:31.6]} 9... Qd8
{[%clk 0:09:32.8]} 10. Nxa8 {[%clk 0:08:30.8]} 10... b5 {[%clk 0:09:34]} 11.
dxe5 {[%clk 0:07:58.6]} 11... Nxe5 {[%clk 0:09:21.3]} 12. Nd5 {[%clk 0:07:55.2]}
12... Ne8 {[%clk 0:05:11.1]} 13. Nxe7+ {[%clk 0:07:08.1]} 13... Qxe7 {[%clk
0:05:08.6]} 14. Qd5+ {[%clk 0:06:32.9]} 14... Nf7 {[%clk 0:05:05.7]} 15. O-O
{[%clk 0:06:24.3]} 15... Bb7 {[%clk 0:05:05.4]} 16. Qxb5 {[%clk 0:05:46.5]}
16... Bxa8 {[%clk 0:05:01.5]} 17. Bf4 {[%clk 0:05:11.2]} 17... h6 {[%clk
0:04:11.8]} 18. f3 {[%clk 0:05:08]} 18... Kh7 {[%clk 0:03:49.8]} 19. Rad1 {[%clk
0:05:03.3]} 19... Rf8 {[%clk 0:03:49.9]} 20. Rfe1 {[%clk 0:05:00.2]} 20... Kh8
{[%clk 0:03:47.6]} 21. Kh1 {[%clk 0:04:48.6]} 21... g5 {[%clk 0:02:42.1]} 22.
Bg3 {[%clk 0:04:47.1]} 22... h5 {[%clk 0:02:38.7]} 23. e5 {[%clk 0:04:36.3]}
23... d5 {[%clk 0:02:15.3]} 24. Qd3 {[%clk 0:04:19.8]} 24... Qe6 {[%clk
0:02:11.2]} 25. Qd4 {[%clk 0:04:11.8]} 25... Ng7 {[%clk 0:02:03]} 26. Qxa7
{[%clk 0:04:07.2]} 26... Nf5 {[%clk 0:02:03.7]} 27. Bf2 {[%clk 0:04:07.1]} 27...
g4 {[%clk 0:02:02.2]} 28. fxg4 {[%clk 0:03:46.8]} 28... hxg4 {[%clk 0:02:02.7]}
29. Bc5 {[%clk 0:03:46.4]} 29... Rg8 {[%clk 0:01:58.3]} 30. Qb6 {[%clk
0:03:40.9]} 30... Bc6 {[%clk 0:01:57.4]} 31. Qb4 {[%clk 0:03:22.6]} 31... g3
{[%clk 0:01:54.5]} 32. Qf4 {[%clk 0:03:18.1]} 32... d4 {[%clk 0:01:41.6]} 33. h3
{[%clk 0:03:05.6]} 33... N7h6 {[%clk 0:01:08.8]} 34. Kg1 {[%clk 0:02:50.4]}
34... Rg7 {[%clk 0:00:56]} 35. Bxd4 {[%clk 0:02:39.3]} 35... Nxd4 {[%clk
0:00:46.9]} 36. Rxd4 {[%clk 0:02:36.1]} 36... Rf7 {[%clk 0:00:47.8]} 37. Qg5
{[%clk 0:02:10.4]} 37... Rf2 {[%clk 0:00:33.1]} 38. Rd2 {[%clk 0:02:00.4]} 38...
Nf7 {[%clk 0:00:18.4]} 39. Qh4+ {[%clk 0:01:57]} 39... Kg8 {[%clk 0:00:15.7]}
40. Qxg3+ {[%clk 0:01:55.7]} 1-0

[Event "GrandPrix_29.05"]
[Site "Chess.com"]
[Date "2020.05.29"]
[Round "2"]
[White "NikolaN98"]
[Black "Ave_Mariia"]
[Result "1-0"]
[WhiteElo "2126"]
[BlackElo "2175"]
[TimeControl "600+2"]
[EndTime "9:54:53 PDT"]
[Termination "NikolaN98 won by resignation"]

1. e4 {[%clk 0:10:01.5]} 1... c5 {[%clk 0:10:00.7]} 2. Nc3 {[%clk 0:09:59.6]}
2... d6 {[%clk 0:09:53.8]} 3. f4 {[%clk 0:09:58.2]} 3... Nc6 {[%clk 0:09:50.3]}
4. Nf3 {[%clk 0:09:57.8]} 4... g6 {[%clk 0:09:50.2]} 5. Bb5 {[%clk 0:09:57.2]}
5... Bg7 {[%clk 0:09:40.2]} 6. Bxc6+ {[%clk 0:09:51.6]} 6... bxc6 {[%clk
0:09:40.6]} 7. O-O {[%clk 0:09:53.2]} 7... Nf6 {[%clk 0:09:22.6]} 8. d3 {[%clk
0:09:52.6]} 8... O-O {[%clk 0:09:22.2]} 9. Qe1 {[%clk 0:09:52.1]} 9... Rb8
{[%clk 0:08:53.1]} 10. Qh4 {[%clk 0:09:49.5]} 10... Bg4 {[%clk 0:08:19.1]} 11.
Nd2 {[%clk 0:09:47.8]} 11... Bd7 {[%clk 0:07:58.7]} 12. h3 {[%clk 0:09:43.5]}
12... d5 {[%clk 0:07:28.1]} 13. Nf3 {[%clk 0:09:40.3]} 13... e6 {[%clk
0:06:28.3]} 14. e5 {[%clk 0:09:37.1]} 14... Ne8 {[%clk 0:06:28.4]} 15. Qxd8
{[%clk 0:09:36.7]} 15... Rxd8 {[%clk 0:06:28.8]} 16. Na4 {[%clk 0:09:37]} 16...
c4 {[%clk 0:06:22.7]} 17. d4 {[%clk 0:09:35.1]} 17... Nc7 {[%clk 0:06:15]} 18.
Nc5 {[%clk 0:08:27.3]} 18... Rfe8 {[%clk 0:05:32.9]} 19. Bd2 {[%clk 0:07:38.2]}
19... Bf8 {[%clk 0:04:58.2]} 20. Ba5 {[%clk 0:07:35.2]} 20... Bxc5 {[%clk
0:04:56.2]} 21. Bxc7 {[%clk 0:07:09.2]} 21... Rc8 {[%clk 0:04:57]} 22. dxc5
{[%clk 0:06:12.6]} 22... Rxc7 {[%clk 0:04:56.9]} 23. b4 {[%clk 0:05:07.7]} 23...
Kg7 {[%clk 0:03:43]} 24. c3 {[%clk 0:04:51.5]} 24... f6 {[%clk 0:03:28.1]} 25.
a4 {[%clk 0:04:36.2]} 25... Rcc8 {[%clk 0:03:00.8]} 26. Nd4 {[%clk 0:03:14.4]}
26... a5 {[%clk 0:01:14.1]} 27. bxa5 {[%clk 0:02:54.6]} 27... Ra8 {[%clk
0:01:06.5]} 28. Rfb1 {[%clk 0:02:52]} 28... Reb8 {[%clk 0:01:06.9]} 29. a6
{[%clk 0:02:21.6]} 29... fxe5 {[%clk 0:01:00.2]} 30. fxe5 {[%clk 0:02:21]} 30...
Kg8 {[%clk 0:00:37.4]} 31. Rb7 {[%clk 0:01:47.7]} 31... Bc8 {[%clk 0:00:37.9]}
32. Rxb8 {[%clk 0:01:30]} 32... Rxb8 {[%clk 0:00:39.8]} 33. a7 {[%clk
0:01:30.4]} 33... Ra8 {[%clk 0:00:40.1]} 34. Rb1 {[%clk 0:01:29.8]} 34... Rxa7
{[%clk 0:00:37.7]} 35. Rb8 {[%clk 0:01:29.4]} 1-0

[Event "GrandPrix_29.05"]
[Site "Chess.com"]
[Date "2020.05.29"]
[Round "2"]
[White "Gurvich_Vitaly"]
[Black "Bosiocic"]
[Result "0-1"]
[WhiteElo "2273"]
[BlackElo "2702"]
[TimeControl "600+2"]
[EndTime "9:54:56 PDT"]
[Termination "Bosiocic won by resignation"]

1. e4 {[%clk 0:10:01.9]} 1... d6 {[%clk 0:10:00.9]} 2. d4 {[%clk 0:10:02.1]}
2... Nf6 {[%clk 0:10:02]} 3. Nc3 {[%clk 0:10:02.8]} 3... e5 {[%clk 0:10:03]} 4.
dxe5 {[%clk 0:09:57]} 4... dxe5 {[%clk 0:10:03.8]} 5. Qxd8+ {[%clk 0:09:58.9]}
5... Kxd8 {[%clk 0:10:04.7]} 6. Bg5 {[%clk 0:10:00.5]} 6... Be6 {[%clk
0:10:04.5]} 7. g3 {[%clk 0:09:58.7]} 7... h6 {[%clk 0:09:41.2]} 8. O-O-O+ {[%clk
0:09:53.4]} 8... Kc8 {[%clk 0:09:19.5]} 9. Bxf6 {[%clk 0:09:36.8]} 9... gxf6
{[%clk 0:09:20.2]} 10. Nd5 {[%clk 0:09:26.2]} 10... Nd7 {[%clk 0:09:16.7]} 11.
f4 {[%clk 0:08:54.5]} 11... h5 {[%clk 0:08:36]} 12. Nf3 {[%clk 0:08:50.1]} 12...
c6 {[%clk 0:08:32.6]} 13. f5 {[%clk 0:07:56.8]} 13... Bxf5 {[%clk 0:08:03.5]}
14. Nxf6 {[%clk 0:07:50.1]} 14... Nxf6 {[%clk 0:07:45.9]} 15. exf5 {[%clk
0:07:50.5]} 15... Ng4 {[%clk 0:07:39.4]} 16. Re1 {[%clk 0:07:42.7]} 16... e4
{[%clk 0:07:15.8]} 17. h3 {[%clk 0:06:31.3]} 17... exf3 {[%clk 0:05:07.6]} 18.
hxg4 {[%clk 0:06:30.5]} 18... Bh6+ {[%clk 0:05:06.8]} 19. Kd1 {[%clk 0:05:52.7]}
19... Kc7 {[%clk 0:04:51.9]} 20. Rxh5 {[%clk 0:05:40.6]} 20... Rag8 {[%clk
0:03:50.7]} 21. Bd3 {[%clk 0:03:39.1]} 21... Bg7 {[%clk 0:03:50.3]} 22. Rf1
{[%clk 0:03:12.3]} 22... Bxb2 {[%clk 0:03:48.3]} 23. Rxf3 {[%clk 0:02:56]} 23...
Rxg4 {[%clk 0:03:47.8]} 24. Rxh8 {[%clk 0:02:57.1]} 24... Bxh8 {[%clk
0:03:47.7]} 25. Ke2 {[%clk 0:01:58.8]} 25... Be5 {[%clk 0:03:44.9]} 26. Kf2
{[%clk 0:01:37.2]} 26... f6 {[%clk 0:03:45.1]} 27. Re3 {[%clk 0:01:13.3]} 27...
Ra4 {[%clk 0:03:38.9]} 28. Re4 {[%clk 0:01:06]} 28... Rxa2 {[%clk 0:03:37.2]}
29. g4 {[%clk 0:01:07.4]} 29... Kd6 {[%clk 0:03:37.8]} 30. Ke2 {[%clk
0:01:06.9]} 30... a5 {[%clk 0:03:31.4]} 31. Kd2 {[%clk 0:01:05.5]} 31... Ra1
{[%clk 0:03:23.6]} 32. Bc4 {[%clk 0:01:03.8]} 32... b5 {[%clk 0:03:20.1]} 33.
Bf7 {[%clk 0:01:04.3]} 33... a4 {[%clk 0:03:16.6]} 34. c4 {[%clk 0:00:57.7]}
34... b4 {[%clk 0:03:10]} 35. c5+ {[%clk 0:00:58.3]} 35... Kxc5 {[%clk
0:03:08.2]} 36. g5 {[%clk 0:00:59.6]} 36... Bc3+ {[%clk 0:03:06.3]} 37. Kd3
{[%clk 0:00:59.5]} 37... fxg5 {[%clk 0:02:55.9]} 38. Re6 {[%clk 0:00:57.9]}
38... Rd1+ {[%clk 0:02:16.7]} 39. Kc2 {[%clk 0:00:57.2]} 39... Rd2+ {[%clk
0:02:16.7]} 40. Kc1 {[%clk 0:00:58.5]} 40... Rd6 {[%clk 0:02:17.7]} 41. Re4
{[%clk 0:00:57.1]} 41... Rd4 {[%clk 0:02:00.7]} 42. Re6 {[%clk 0:00:38.3]} 42...
b3 {[%clk 0:01:59.7]} 43. Re2 {[%clk 0:00:32.9]} 43... Kb4 {[%clk 0:01:55.1]}
0-1

[Event "GrandPrix_29.05"]
[Site "Chess.com"]
[Date "2020.05.29"]
[Round "2"]
[White "A_N_D-R_E_I"]
[Black "ALeks_Ivlev"]
[Result "0-1"]
[WhiteElo "2087"]
[BlackElo "2099"]
[TimeControl "600+2"]
[EndTime "9:54:58 PDT"]
[Termination "ALeks_Ivlev won by checkmate"]

1. e4 {[%clk 0:10:01.7]} 1... c5 {[%clk 0:09:56.9]} 2. Nf3 {[%clk 0:10:02.1]}
2... d6 {[%clk 0:09:57.8]} 3. d4 {[%clk 0:10:02.7]} 3... cxd4 {[%clk 0:09:59.7]}
4. Qxd4 {[%clk 0:10:04.2]} 4... Nc6 {[%clk 0:09:58.3]} 5. Bb5 {[%clk 0:10:04.4]}
5... Bd7 {[%clk 0:09:59.8]} 6. Qd3 {[%clk 0:10:05.6]} 6... Nf6 {[%clk 0:09:56]}
7. c4 {[%clk 0:10:06.5]} 7... g6 {[%clk 0:09:55.7]} 8. Nc3 {[%clk 0:10:07.4]}
8... Bg7 {[%clk 0:09:56.8]} 9. O-O {[%clk 0:10:04.4]} 9... O-O {[%clk
0:09:56.6]} 10. h3 {[%clk 0:10:05.5]} 10... Rc8 {[%clk 0:08:48.6]} 11. Be3
{[%clk 0:10:04.2]} 11... a6 {[%clk 0:08:47.6]} 12. Bxc6 {[%clk 0:10:04.9]} 12...
Bxc6 {[%clk 0:08:47.5]} 13. Nd4 {[%clk 0:10:05.2]} 13... Bd7 {[%clk 0:08:46.5]}
14. Rac1 {[%clk 0:10:02.6]} 14... Qa5 {[%clk 0:08:38.9]} 15. a3 {[%clk
0:10:00.7]} 15... Qh5 {[%clk 0:08:30.4]} 16. Nd5 {[%clk 0:09:17.6]} 16... Nxd5
{[%clk 0:08:24.3]} 17. exd5 {[%clk 0:09:16.9]} 17... b5 {[%clk 0:07:26.8]} 18.
b3 {[%clk 0:08:29.1]} 18... Rc5 {[%clk 0:05:42.2]} 19. Nc6 {[%clk 0:06:31.1]}
19... Rxc6 {[%clk 0:05:27.7]} 20. dxc6 {[%clk 0:06:29.9]} 20... Bxc6 {[%clk
0:05:29.1]} 21. Rfe1 {[%clk 0:05:17.6]} 21... Bb2 {[%clk 0:04:13.2]} 22. Rc2
{[%clk 0:05:16.5]} 22... Bxa3 {[%clk 0:04:14.2]} 23. Bd2 {[%clk 0:05:11.2]}
23... b4 {[%clk 0:02:27.7]} 24. Rxe7 {[%clk 0:04:56]} 24... a5 {[%clk
0:02:15.7]} 25. Bc1 {[%clk 0:03:37.6]} 25... Bxc1 {[%clk 0:02:11.2]} 26. Rxc1
{[%clk 0:03:38.6]} 26... Qg5 {[%clk 0:02:11.5]} 27. Qg3 {[%clk 0:01:35.2]} 27...
Qxe7 {[%clk 0:02:10.6]} 28. Rd1 {[%clk 0:01:35.2]} 28... Rd8 {[%clk 0:02:08.7]}
29. h4 {[%clk 0:01:28.6]} 29... h5 {[%clk 0:02:08.4]} 30. Ra1 {[%clk 0:01:15.5]}
30... d5 {[%clk 0:02:00.8]} 31. Rxa5 {[%clk 0:01:08.6]} 31... dxc4 {[%clk
0:01:56.5]} 32. bxc4 {[%clk 0:01:07]} 32... Rd1+ {[%clk 0:01:55.3]} 33. Kh2
{[%clk 0:01:04.6]} 33... Qe1 {[%clk 0:01:46.8]} 34. Qh3 {[%clk 0:00:17.6]} 34...
Qg1+ {[%clk 0:01:35.1]} 35. Kg3 {[%clk 0:00:16.8]} 35... Rd3+ {[%clk 0:01:36.4]}
36. f3 {[%clk 0:00:15.2]} 36... Rxf3# {[%clk 0:01:36.8]} 0-1

[Event "GrandPrix_29.05"]
[Site "Chess.com"]
[Date "2020.05.29"]
[Round "2"]
[White "viktorskliarov"]
[Black "Chepaschess"]
[Result "0-1"]
[WhiteElo "2190"]
[BlackElo "2604"]
[TimeControl "600+2"]
[EndTime "9:55:00 PDT"]
[Termination "Chepaschess won by resignation"]

1. e4 {[%clk 0:10:01.9]} 1... c5 {[%clk 0:09:55.4]} 2. Nf3 {[%clk 0:10:02.8]}
2... d6 {[%clk 0:09:56.1]} 3. d4 {[%clk 0:10:03.6]} 3... cxd4 {[%clk 0:09:57.4]}
4. Qxd4 {[%clk 0:10:05.5]} 4... Nc6 {[%clk 0:09:57.6]} 5. Bb5 {[%clk 0:10:06.1]}
5... a6 {[%clk 0:09:58.8]} 6. Bxc6+ {[%clk 0:10:07.1]} 6... bxc6 {[%clk
0:10:00.7]} 7. O-O {[%clk 0:10:07.8]} 7... e5 {[%clk 0:09:59.5]} 8. Qd3 {[%clk
0:10:09]} 8... Ne7 {[%clk 0:09:55.4]} 9. b3 {[%clk 0:09:36.4]} 9... Ng6 {[%clk
0:09:41.8]} 10. Ba3 {[%clk 0:09:36.6]} 10... f6 {[%clk 0:09:05.6]} 11. c4 {[%clk
0:08:44.8]} 11... Nf4 {[%clk 0:08:59.1]} 12. Qe3 {[%clk 0:08:20.7]} 12... Be7
{[%clk 0:07:46]} 13. Nc3 {[%clk 0:07:57.1]} 13... Bg4 {[%clk 0:07:21.6]} 14.
Rad1 {[%clk 0:05:43.8]} 14... Qa5 {[%clk 0:06:57.8]} 15. Na4 {[%clk 0:05:43.6]}
15... Rd8 {[%clk 0:06:46]} 16. h3 {[%clk 0:04:58.7]} 16... Bh5 {[%clk
0:06:36.1]} 17. Kh2 {[%clk 0:04:59.2]} 17... O-O {[%clk 0:06:13.7]} 18. g4
{[%clk 0:04:22.4]} 18... Bg6 {[%clk 0:05:40.1]} 19. Nh4 {[%clk 0:04:17.9]} 19...
Rfe8 {[%clk 0:04:51.4]} 20. Nf5 {[%clk 0:03:49.6]} 20... Bxf5 {[%clk 0:04:49.6]}
21. gxf5 {[%clk 0:03:26.9]} 21... d5 {[%clk 0:04:38.8]} 22. Bxe7 {[%clk
0:01:47.3]} 22... Rxe7 {[%clk 0:04:40.7]} 23. Qc5 {[%clk 0:01:48.5]} 23... Qc7
{[%clk 0:04:17.2]} 24. f3 {[%clk 0:01:39]} 24... dxe4 {[%clk 0:04:00]} 25. fxe4
{[%clk 0:01:26.8]} 25... Red7 {[%clk 0:03:55.9]} 26. Rxd7 {[%clk 0:00:37.9]}
26... Qxd7 {[%clk 0:03:45.6]} 27. Qe3 {[%clk 0:00:38.8]} 27... Qd2+ {[%clk
0:03:26]} 28. Qxd2 {[%clk 0:00:39.8]} 28... Rxd2+ {[%clk 0:03:27.9]} 29. Kg3
{[%clk 0:00:41.4]} 29... Rg2+ {[%clk 0:03:10.4]} 30. Kf3 {[%clk 0:00:40.7]}
30... Rxa2 {[%clk 0:03:11.1]} 31. Rd1 {[%clk 0:00:34.9]} 31... h5 {[%clk
0:03:11.4]} 32. Rd8+ {[%clk 0:00:21.5]} 32... Kh7 {[%clk 0:03:12.1]} 33. Nc5
{[%clk 0:00:22.1]} 33... Rh2 {[%clk 0:03:11.6]} 34. Ne6 {[%clk 0:00:16.4]} 34...
Rxh3+ {[%clk 0:03:12.8]} 35. Kf2 {[%clk 0:00:15.4]} 35... Rxb3 {[%clk
0:02:58.9]} 36. Nf8+ {[%clk 0:00:11.6]} 36... Kh6 {[%clk 0:02:59.5]} 37. Ne6
{[%clk 0:00:12.9]} 37... Nxe6 {[%clk 0:02:37.5]} 38. fxe6 {[%clk 0:00:13.7]}
38... Rb7 {[%clk 0:02:39]} 39. Rd7 {[%clk 0:00:12.1]} 39... Rb8 {[%clk
0:02:35.8]} 40. Kg3 {[%clk 0:00:05.5]} 40... Re8 {[%clk 0:02:25.3]} 41. e7
{[%clk 0:00:02.6]} 41... a5 {[%clk 0:02:22.9]} 42. Ra7 {[%clk 0:00:03.4]} 42...
a4 {[%clk 0:02:23.7]} 43. c5 {[%clk 0:00:04.8]} 43... a3 {[%clk 0:02:24.7]} 44.
Rxa3 {[%clk 0:00:05.8]} 44... Rxe7 {[%clk 0:02:25.6]} 45. Ra6 {[%clk 0:00:07.7]}
45... Rc7 {[%clk 0:02:24.9]} 46. Ra8 {[%clk 0:00:08.7]} 0-1